[Event "Late-Titled-Tuesday-Blitz-March-26-2024"]
[Site "Chess.com"]
[Date "2024.03.26"]
[Round "7"]
[White "misterlamine"]
[Black "carloseduar100"]
[Result "1-0"]
[WhiteElo "2475"]
[BlackElo "2252"]
[TimeControl "180+1"]
[EndTime "15:17:58 PDT"]
[Termination "misterlamine won by resignation"]

1. d4 {[%clk 0:03:00.9]} 1... d5 {[%clk 0:02:59.9]} 2. Nf3 {[%clk 0:03:01.7]}
2... c6 {[%clk 0:03:00.1]} 3. e3 {[%clk 0:03:02.3]} 3... a6 {[%clk 0:02:59.6]}
4. Be2 {[%clk 0:03:02.7]} 4... Nf6 {[%clk 0:02:59.9]} 5. O-O {[%clk 0:03:03.6]}
5... Bf5 {[%clk 0:02:59.8]} 6. Nbd2 {[%clk 0:03:02.5]} 6... Nbd7 {[%clk
0:03:00.1]} 7. b3 {[%clk 0:03:02.8]} 7... h6 {[%clk 0:03:00.5]} 8. Bb2 {[%clk
0:03:02.6]} 8... Qc7 {[%clk 0:03:00.8]} 9. c4 {[%clk 0:03:02.8]} 9... e6 {[%clk
0:03:01.1]} 10. Rc1 {[%clk 0:03:02.5]} 10... Bd6 {[%clk 0:03:01.4]} 11. a3
{[%clk 0:02:59.6]} 11... Ne4 {[%clk 0:03:01.3]} 12. b4 {[%clk 0:02:57.4]} 12...
Nxd2 {[%clk 0:02:58.1]} 13. Qxd2 {[%clk 0:02:56.8]} 13... Bg4 {[%clk 0:02:57.2]}
14. h3 {[%clk 0:02:54]} 14... Bh5 {[%clk 0:02:53.3]} 15. b5 {[%clk 0:02:47.1]}
15... axb5 {[%clk 0:02:52.9]} 16. cxb5 {[%clk 0:02:47.5]} 16... O-O {[%clk
0:02:52.2]} 17. bxc6 {[%clk 0:02:42.8]} 17... bxc6 {[%clk 0:02:52.2]} 18. Qc3
{[%clk 0:02:40.5]} 18... Rfc8 {[%clk 0:02:35.7]} 19. Rc2 {[%clk 0:02:39.6]}
19... Bxf3 {[%clk 0:02:26.7]} 20. Bxf3 {[%clk 0:02:37.1]} 20... c5 {[%clk
0:02:27.6]} 21. dxc5 {[%clk 0:02:30.6]} 21... Be5 {[%clk 0:02:28]} 22. Qb3
{[%clk 0:02:27.3]} 22... Bxb2 {[%clk 0:02:17.7]} 23. Qxb2 {[%clk 0:02:26.4]}
23... Nxc5 {[%clk 0:02:16.1]} 24. Rfc1 {[%clk 0:02:23.6]} 24... Qd6 {[%clk
0:01:45.3]} 25. Qb4 {[%clk 0:02:14.8]} 25... Rab8 {[%clk 0:01:27.7]} 26. Rxc5
{[%clk 0:02:06.1]} 26... Rxb4 {[%clk 0:01:27.7]} 27. Rxc8+ {[%clk 0:02:05.9]}
27... Kh7 {[%clk 0:01:28.4]} 28. axb4 {[%clk 0:02:05.9]} 28... Qxb4 {[%clk
0:01:29.3]} 29. R8c7 {[%clk 0:02:02.5]} 29... Kg6 {[%clk 0:01:29.2]} 30. Rd7
{[%clk 0:02:02.7]} 30... Qd2 {[%clk 0:01:19.2]} 31. Rcc7 {[%clk 0:01:59.1]}
31... Qe1+ {[%clk 0:01:19.3]} 32. Kh2 {[%clk 0:01:59.1]} 32... Qxf2 {[%clk
0:01:16.2]} 33. Rxf7 {[%clk 0:01:59.5]} 33... Qxe3 {[%clk 0:01:16.1]} 34. Rxg7+
{[%clk 0:01:59.6]} 34... Kf6 {[%clk 0:01:15]} 35. Rcf7+ {[%clk 0:01:53.8]} 35...
Ke5 {[%clk 0:01:15.2]} 36. Rg6 {[%clk 0:01:51.7]} 36... Kd6 {[%clk 0:00:57.3]}
37. Rff6 {[%clk 0:01:40.5]} 37... Qe5+ {[%clk 0:00:57.4]} 38. g3 {[%clk
0:01:41]} 38... Qb2+ {[%clk 0:00:48.9]} 39. Bg2 {[%clk 0:01:40.7]} 39... h5
{[%clk 0:00:46.4]} 40. Rxe6+ {[%clk 0:01:40.2]} 40... Kd7 {[%clk 0:00:45.7]} 41.
Rd6+ {[%clk 0:01:39.9]} 41... Ke7 {[%clk 0:00:46.1]} 42. Rxd5 {[%clk 0:01:36.6]}
42... h4 {[%clk 0:00:46.5]} 43. gxh4 {[%clk 0:01:24]} 43... Qb8+ {[%clk
0:00:45.5]} 44. Rg3 {[%clk 0:01:23.2]} 44... Ke6 {[%clk 0:00:44.9]} 45. h5
{[%clk 0:01:20.6]} 45... Qf4 {[%clk 0:00:40.2]} 46. Rg5 {[%clk 0:01:18.5]} 46...
Qh4 {[%clk 0:00:33.4]} 47. Rg6+ {[%clk 0:01:18.4]} 47... Kf5 {[%clk 0:00:33.6]}
48. h6 {[%clk 0:01:18.7]} 48... Qe7 {[%clk 0:00:17.5]} 49. R3g5+ {[%clk
0:01:08.4]} 49... Kf4 {[%clk 0:00:17.3]} 50. Rg4+ {[%clk 0:01:08.6]} 50... Ke3
{[%clk 0:00:17.5]} 51. Re4+ {[%clk 0:01:07.9]} 51... Qxe4 {[%clk 0:00:14.4]} 52.
Bxe4 {[%clk 0:01:08.8]} 1-0

[Event "Late-Titled-Tuesday-Blitz-March-26-2024"]
[Site "Chess.com"]
[Date "2024.03.26"]
[Round "7"]
[White "Felix-Rose"]
[Black "Kavyev_Ruslan"]
[Result "1-0"]
[WhiteElo "2270"]
[BlackElo "2382"]
[TimeControl "180+1"]
[EndTime "15:18:03 PDT"]
[Termination "Felix-Rose won on time"]

1. e4 {[%clk 0:03:00.1]} 1... c5 {[%clk 0:03:00]} 2. Nf3 {[%clk 0:03:00]} 2...
Nc6 {[%clk 0:03:00.4]} 3. d4 {[%clk 0:03:00.2]} 3... cxd4 {[%clk 0:03:01.3]} 4.
Nxd4 {[%clk 0:03:01.1]} 4... Nf6 {[%clk 0:03:00.6]} 5. Nc3 {[%clk 0:03:01.3]}
5... e5 {[%clk 0:03:01]} 6. Ndb5 {[%clk 0:03:01.8]} 6... d6 {[%clk 0:03:01.3]}
7. Bg5 {[%clk 0:03:02.5]} 7... a6 {[%clk 0:03:01]} 8. Na3 {[%clk 0:03:03]} 8...
b5 {[%clk 0:03:01.6]} 9. Nab1 {[%clk 0:03:03.5]} 9... Be7 {[%clk 0:02:57.9]} 10.
Bxf6 {[%clk 0:03:03.9]} 10... Bxf6 {[%clk 0:02:58]} 11. Nd5 {[%clk 0:03:03.8]}
11... Rb8 {[%clk 0:02:45.3]} 12. c3 {[%clk 0:02:50.5]} 12... Bg5 {[%clk
0:02:40.3]} 13. Na3 {[%clk 0:02:48.5]} 13... O-O {[%clk 0:02:35]} 14. Nc2 {[%clk
0:02:46.7]} 14... Ne7 {[%clk 0:02:30.9]} 15. Ncb4 {[%clk 0:02:46.1]} 15... Qd7
{[%clk 0:02:03.3]} 16. Be2 {[%clk 0:02:25.2]} 16... Bb7 {[%clk 0:01:51.1]} 17.
O-O {[%clk 0:02:21.8]} 17... Nxd5 {[%clk 0:01:44.5]} 18. Nxd5 {[%clk 0:02:21.3]}
18... Bxd5 {[%clk 0:01:41.7]} 19. Qxd5 {[%clk 0:02:21.1]} 19... Rfc8 {[%clk
0:01:39.9]} 20. Rfd1 {[%clk 0:02:19.6]} 20... Rd8 {[%clk 0:01:26.7]} 21. Rd3
{[%clk 0:02:10.4]} 21... Be7 {[%clk 0:01:25.8]} 22. Rad1 {[%clk 0:02:09.5]}
22... Qa7 {[%clk 0:01:25.5]} 23. R1d2 {[%clk 0:01:58]} 23... Rdc8 {[%clk
0:01:20.1]} 24. Rf3 {[%clk 0:01:52.1]} 24... Bf8 {[%clk 0:01:13.9]} 25. Bd1
{[%clk 0:01:51.2]} 25... Rc5 {[%clk 0:01:13.4]} 26. Qd3 {[%clk 0:01:51.3]} 26...
b4 {[%clk 0:01:07.1]} 27. Bb3 {[%clk 0:01:40.7]} 27... Rc7 {[%clk 0:00:58.7]}
28. cxb4 {[%clk 0:01:32.8]} 28... Rxb4 {[%clk 0:00:50]} 29. Rc2 {[%clk
0:01:28.7]} 29... Rd4 {[%clk 0:00:42.6]} 30. Rxc7 {[%clk 0:01:19]} 30... Qxc7
{[%clk 0:00:42.4]} 31. Qb1 {[%clk 0:01:14.2]} 31... Kh8 {[%clk 0:00:13.8]} 32.
Rxf7 {[%clk 0:01:09.2]} 32... Qb8 {[%clk 0:00:12.6]} 33. g3 {[%clk 0:01:02.9]}
33... h6 {[%clk 0:00:12.4]} 34. Qc2 {[%clk 0:00:55.9]} 34... Qd8 {[%clk
0:00:11.2]} 35. Qe2 {[%clk 0:00:52.1]} 35... Be7 {[%clk 0:00:09.5]} 36. Qg4
{[%clk 0:00:49]} 36... Bf6 {[%clk 0:00:09.4]} 37. Qg6 {[%clk 0:00:41.5]} 37...
Qg8 {[%clk 0:00:07.7]} 38. Rxf6 {[%clk 0:00:39.7]} 1-0

[Event "Late-Titled-Tuesday-Blitz-March-26-2024"]
[Site "Chess.com"]
[Date "2024.03.26"]
[Round "7"]
[White "santosalberto1987"]
[Black "ernestina08chess"]
[Result "1-0"]
[WhiteElo "2518"]
[BlackElo "2254"]
[TimeControl "180+1"]
[EndTime "15:18:04 PDT"]
[Termination "santosalberto1987 won by checkmate"]

1. e4 {[%clk 0:03:00.7]} 1... c5 {[%clk 0:02:58.8]} 2. Nf3 {[%clk 0:03:00.5]}
2... d6 {[%clk 0:02:59.5]} 3. d4 {[%clk 0:03:00.2]} 3... cxd4 {[%clk 0:03:00.4]}
4. Nxd4 {[%clk 0:03:00.9]} 4... Nf6 {[%clk 0:03:01.1]} 5. Nc3 {[%clk 0:03:00.9]}
5... a6 {[%clk 0:03:00.8]} 6. Be3 {[%clk 0:03:00.6]} 6... e5 {[%clk 0:03:00.7]}
7. Nf3 {[%clk 0:03:01]} 7... Be7 {[%clk 0:02:57.6]} 8. Bc4 {[%clk 0:03:00.7]}
8... Be6 {[%clk 0:02:49.4]} 9. Bxe6 {[%clk 0:03:00.1]} 9... fxe6 {[%clk
0:02:49.4]} 10. O-O {[%clk 0:02:59.8]} 10... O-O {[%clk 0:02:48.1]} 11. a4
{[%clk 0:02:56.2]} 11... Nc6 {[%clk 0:02:44.3]} 12. h3 {[%clk 0:02:48.5]} 12...
d5 {[%clk 0:02:41.9]} 13. Bg5 {[%clk 0:02:47.3]} 13... d4 {[%clk 0:02:36.6]} 14.
Bxf6 {[%clk 0:02:47.4]} 14... Bxf6 {[%clk 0:02:34.3]} 15. Ne2 {[%clk 0:02:47.2]}
15... Rc8 {[%clk 0:02:24.6]} 16. Qd3 {[%clk 0:02:46.5]} 16... Nb4 {[%clk
0:02:23.5]} 17. Qb3 {[%clk 0:02:46.3]} 17... Nxc2 {[%clk 0:02:06.7]} 18. Rac1
{[%clk 0:02:45.7]} 18... d3 {[%clk 0:02:05.4]} 19. Rfd1 {[%clk 0:02:45]} 19...
Nd4 {[%clk 0:01:51]} 20. Nexd4 {[%clk 0:02:43.7]} 20... exd4 {[%clk 0:01:38.8]}
21. Qxe6+ {[%clk 0:02:42.9]} 21... Kh8 {[%clk 0:01:37.2]} 22. Rxc8 {[%clk
0:02:41.6]} 22... Qxc8 {[%clk 0:01:37.2]} 23. Qxc8 {[%clk 0:02:42.1]} 23... Rxc8
{[%clk 0:01:36.8]} 24. Rxd3 {[%clk 0:02:42.4]} 24... Re8 {[%clk 0:01:29.5]} 25.
e5 {[%clk 0:02:37.1]} 25... Bxe5 {[%clk 0:01:27.5]} 26. Nxe5 {[%clk 0:02:38]}
26... Rxe5 {[%clk 0:01:27.1]} 27. Rxd4 {[%clk 0:02:38.5]} 27... h6 {[%clk
0:01:23.2]} 28. Rb4 {[%clk 0:02:38.1]} 28... b5 {[%clk 0:01:18.2]} 29. axb5
{[%clk 0:02:34.4]} 29... axb5 {[%clk 0:01:17]} 30. Kh2 {[%clk 0:02:34.2]} 30...
Kh7 {[%clk 0:01:14.8]} 31. f4 {[%clk 0:02:34.3]} 31... Rc5 {[%clk 0:01:13.3]}
32. g4 {[%clk 0:02:33.1]} 32... g5 {[%clk 0:01:07]} 33. Kg3 {[%clk 0:02:29.6]}
33... Rd5 {[%clk 0:01:02.9]} 34. h4 {[%clk 0:02:26.9]} 34... Rd3+ {[%clk
0:00:54.6]} 35. Kg2 {[%clk 0:02:27.1]} 35... Rd5 {[%clk 0:00:52.9]} 36. hxg5
{[%clk 0:02:15.5]} 36... hxg5 {[%clk 0:00:52.7]} 37. f5 {[%clk 0:02:16.4]} 37...
Kg7 {[%clk 0:00:51.8]} 38. Kf3 {[%clk 0:02:16.7]} 38... Re5 {[%clk 0:00:47.4]}
39. Re4 {[%clk 0:02:11.4]} 39... Rc5 {[%clk 0:00:46.3]} 40. Re6 {[%clk
0:02:10.8]} 40... Rc2 {[%clk 0:00:45.1]} 41. Rg6+ {[%clk 0:02:10.4]} 41... Kf7
{[%clk 0:00:44.3]} 42. Rxg5 {[%clk 0:02:10.7]} 42... Rxb2 {[%clk 0:00:44.9]} 43.
Rg6 {[%clk 0:02:10.4]} 43... b4 {[%clk 0:00:39.6]} 44. Rb6 {[%clk 0:02:10.2]}
44... Rb1 {[%clk 0:00:38.4]} 45. Kf4 {[%clk 0:02:10.3]} 45... b3 {[%clk
0:00:38.5]} 46. Kg5 {[%clk 0:02:10.6]} 46... b2 {[%clk 0:00:37.9]} 47. Rb7+
{[%clk 0:02:10.8]} 47... Ke8 {[%clk 0:00:37.4]} 48. Kf6 {[%clk 0:02:08.4]} 48...
Kd8 {[%clk 0:00:33.6]} 49. g5 {[%clk 0:02:07.4]} 49... Ra1 {[%clk 0:00:24.2]}
50. Rxb2 {[%clk 0:02:05.8]} 50... Ra6+ {[%clk 0:00:24.4]} 51. Kg7 {[%clk
0:02:04.5]} 51... Ra7+ {[%clk 0:00:25]} 52. Kh6 {[%clk 0:02:04.7]} 52... Ra6+
{[%clk 0:00:25.1]} 53. g6 {[%clk 0:02:04.9]} 53... Ke7 {[%clk 0:00:25.7]} 54.
Re2+ {[%clk 0:02:00.7]} 54... Kf8 {[%clk 0:00:23.4]} 55. Kg5 {[%clk 0:01:44.2]}
55... Ra5 {[%clk 0:00:18.1]} 56. Kf6 {[%clk 0:01:43.8]} 56... Ra6+ {[%clk
0:00:18.1]} 57. Re6 {[%clk 0:01:44.1]} 57... Ra8 {[%clk 0:00:15.4]} 58. Rb6
{[%clk 0:01:42.7]} 58... Kg8 {[%clk 0:00:14.1]} 59. g7 {[%clk 0:01:37.1]} 59...
Rc8 {[%clk 0:00:11.9]} 60. Re6 {[%clk 0:01:32.4]} 60... Ra8 {[%clk 0:00:09.4]}
61. Re7 {[%clk 0:01:31.9]} 61... Ra6+ {[%clk 0:00:09.2]} 62. Kg5 {[%clk
0:01:31.9]} 62... Ra5 {[%clk 0:00:07.5]} 63. Kg6 {[%clk 0:01:28.1]} 63... Ra1
{[%clk 0:00:06.9]} 64. Re8# {[%clk 0:01:27.3]} 1-0

[Event "Late-Titled-Tuesday-Blitz-March-26-2024"]
[Site "Chess.com"]
[Date "2024.03.26"]
[Round "7"]
[White "FabianoCaruana"]
[Black "mbojan"]
[Result "0-1"]
[WhiteElo "3086"]
[BlackElo "2902"]
[TimeControl "180+1"]
[EndTime "15:18:06 PDT"]
[Termination "mbojan won by resignation"]

1. e4 {[%clk 0:03:00.9]} 1... c5 {[%clk 0:02:59.6]} 2. Nf3 {[%clk 0:03:01]} 2...
e6 {[%clk 0:03:00.3]} 3. d4 {[%clk 0:03:01]} 3... cxd4 {[%clk 0:03:01.2]} 4.
Nxd4 {[%clk 0:03:01.5]} 4... a6 {[%clk 0:03:01.9]} 5. Nc3 {[%clk 0:03:01]} 5...
b5 {[%clk 0:03:01.2]} 6. Bd3 {[%clk 0:03:01.3]} 6... Bb7 {[%clk 0:03:01]} 7. O-O
{[%clk 0:03:01.4]} 7... Nc6 {[%clk 0:03:01.6]} 8. Nf3 {[%clk 0:03:00]} 8... Nge7
{[%clk 0:02:58.6]} 9. Re1 {[%clk 0:02:57.2]} 9... Ng6 {[%clk 0:02:58.5]} 10. a4
{[%clk 0:02:50.4]} 10... b4 {[%clk 0:02:44.5]} 11. Nd5 {[%clk 0:02:50.2]} 11...
Bc5 {[%clk 0:02:43.1]} 12. Be3 {[%clk 0:02:44.8]} 12... Bxe3 {[%clk 0:02:41.7]}
13. Nxe3 {[%clk 0:02:45.7]} 13... O-O {[%clk 0:02:41.8]} 14. Nc4 {[%clk
0:02:42.3]} 14... Qc7 {[%clk 0:02:30.1]} 15. Bf1 {[%clk 0:02:37.3]} 15... Nce5
{[%clk 0:01:50.7]} 16. Nfxe5 {[%clk 0:02:29.9]} 16... Nxe5 {[%clk 0:01:51.6]}
17. Qd6 {[%clk 0:02:19.1]} 17... Qxd6 {[%clk 0:01:46.1]} 18. Nxd6 {[%clk
0:02:20]} 18... Bc6 {[%clk 0:01:46.5]} 19. a5 {[%clk 0:02:18.4]} 19... Rfb8
{[%clk 0:01:39.3]} 20. f4 {[%clk 0:02:13.2]} 20... Ng6 {[%clk 0:01:38.4]} 21. g3
{[%clk 0:02:13.7]} 21... Kf8 {[%clk 0:01:38.9]} 22. Kf2 {[%clk 0:02:10.9]} 22...
Ne7 {[%clk 0:01:36.1]} 23. b3 {[%clk 0:02:05.6]} 23... Nc8 {[%clk 0:01:35.6]}
24. Nc4 {[%clk 0:02:05.1]} 24... Ke7 {[%clk 0:01:31.9]} 25. Rad1 {[%clk
0:01:35.5]} 25... Bb5 {[%clk 0:01:29.2]} 26. Ne5 {[%clk 0:01:21.2]} 26... Ra7
{[%clk 0:00:55.1]} 27. Rd4 {[%clk 0:01:14.6]} 27... Rc7 {[%clk 0:00:50.1]} 28.
Bxb5 {[%clk 0:01:08.7]} 28... Rxb5 {[%clk 0:00:51]} 29. Re2 {[%clk 0:01:09]}
29... Rxa5 {[%clk 0:00:45]} 30. Rxb4 {[%clk 0:01:04]} 30... Nd6 {[%clk
0:00:34.5]} 31. Rd4 {[%clk 0:00:47.9]} 31... Nb5 {[%clk 0:00:32.8]} 32. Rd3
{[%clk 0:00:44.1]} 32... Nd6 {[%clk 0:00:12.5]} 33. c4 {[%clk 0:00:32.9]} 33...
f6 {[%clk 0:00:12.9]} 34. Nf3 {[%clk 0:00:32.3]} 34... Ra3 {[%clk 0:00:13.4]}
35. Ke3 {[%clk 0:00:24.9]} 35... Nb7 {[%clk 0:00:13.4]} 36. Rb2 {[%clk
0:00:10.6]} 36... Nc5 {[%clk 0:00:12.3]} 37. Rc3 {[%clk 0:00:11.1]} 37... Rb7
{[%clk 0:00:13]} 38. Nd2 {[%clk 0:00:10.8]} 38... Na4 {[%clk 0:00:11.4]} 39. Rd3
{[%clk 0:00:10.7]} 39... Nxb2 {[%clk 0:00:11.3]} 0-1

[Event "Late-Titled-Tuesday-Blitz-March-26-2024"]
[Site "Chess.com"]
[Date "2024.03.26"]
[Round "7"]
[White "gorgeous1083"]
[Black "PNEPaul"]
[Result "1-0"]
[WhiteElo "2054"]
[BlackElo "1949"]
[TimeControl "180+1"]
[EndTime "15:18:06 PDT"]
[Termination "gorgeous1083 won on time"]

1. d4 {[%clk 0:03:00.9]} 1... a6 {[%clk 0:02:58.5]} 2. c4 {[%clk 0:03:00.7]}
2... d6 {[%clk 0:02:58.6]} 3. Nf3 {[%clk 0:03:01.1]} 3... g6 {[%clk 0:02:58.8]}
4. Nc3 {[%clk 0:03:01.4]} 4... Bg7 {[%clk 0:02:58.1]} 5. e4 {[%clk 0:03:02]}
5... h6 {[%clk 0:02:58.2]} 6. Be2 {[%clk 0:03:00.4]} 6... Nd7 {[%clk 0:02:56.8]}
7. Be3 {[%clk 0:03:00.3]} 7... e5 {[%clk 0:02:56.8]} 8. O-O {[%clk 0:02:59.6]}
8... Ne7 {[%clk 0:02:56.8]} 9. Qd2 {[%clk 0:02:56.8]} 9... f5 {[%clk 0:02:56.5]}
10. exf5 {[%clk 0:02:54.2]} 10... Nxf5 {[%clk 0:02:53.7]} 11. dxe5 {[%clk
0:02:50.3]} 11... Nxe3 {[%clk 0:02:52.2]} 12. Qxe3 {[%clk 0:02:49.7]} 12... dxe5
{[%clk 0:02:52.3]} 13. Rad1 {[%clk 0:02:48.6]} 13... O-O {[%clk 0:02:37.1]} 14.
c5 {[%clk 0:02:40.3]} 14... c6 {[%clk 0:02:34]} 15. Bc4+ {[%clk 0:02:39.2]}
15... Kh7 {[%clk 0:02:32.6]} 16. Ne4 {[%clk 0:02:36.1]} 16... Qe7 {[%clk
0:02:25.4]} 17. Neg5+ {[%clk 0:02:30.5]} 17... Kh8 {[%clk 0:02:13.8]} 18. Ne6
{[%clk 0:02:24.5]} 18... Rxf3 {[%clk 0:02:06.5]} 19. Qxf3 {[%clk 0:02:21.7]}
19... Nxc5 {[%clk 0:02:05.9]} 20. Nxg7 {[%clk 0:02:00.4]} 20... Kxg7 {[%clk
0:02:04.7]} 21. Rfe1 {[%clk 0:01:44.3]} 21... Bf5 {[%clk 0:01:55.8]} 22. b4
{[%clk 0:01:34]} 22... Nd7 {[%clk 0:01:46.1]} 23. Qb3 {[%clk 0:01:26.1]} 23...
b5 {[%clk 0:01:31.5]} 24. Bd3 {[%clk 0:01:23.8]} 24... Bxd3 {[%clk 0:01:29.2]}
25. Rxd3 {[%clk 0:01:19.4]} 25... Nb6 {[%clk 0:01:28]} 26. Red1 {[%clk
0:01:09.2]} 26... Nd5 {[%clk 0:01:24.4]} 27. a3 {[%clk 0:00:58.5]} 27... Rf8
{[%clk 0:01:20.8]} 28. Rg3 {[%clk 0:00:52.9]} 28... Nf4 {[%clk 0:01:15.2]} 29.
Qc2 {[%clk 0:00:47.6]} 29... Rd8 {[%clk 0:01:00.9]} 30. Re1 {[%clk 0:00:43.9]}
30... Re8 {[%clk 0:00:53.4]} 31. h3 {[%clk 0:00:43.9]} 31... Qf6 {[%clk
0:00:46.7]} 32. Rd1 {[%clk 0:00:39.6]} 32... Re7 {[%clk 0:00:39.6]} 33. Qe4
{[%clk 0:00:37.6]} 33... g5 {[%clk 0:00:33.9]} 34. Rc3 {[%clk 0:00:36.4]} 34...
Nd5 {[%clk 0:00:20.3]} 35. Rxc6 {[%clk 0:00:30.3]} 35... Qxc6 {[%clk 0:00:17.7]}
36. Rxd5 {[%clk 0:00:30.4]} 36... Qc1+ {[%clk 0:00:15.9]} 37. Kh2 {[%clk
0:00:30.5]} 37... Qxa3 {[%clk 0:00:14.1]} 38. Rd6 {[%clk 0:00:23.5]} 1-0

[Event "Late-Titled-Tuesday-Blitz-March-26-2024"]
[Site "Chess.com"]
[Date "2024.03.26"]
[Round "7"]
[White "AlexeiShirov"]
[Black "Durarbayli"]
[Result "0-1"]
[WhiteElo "2825"]
[BlackElo "2940"]
[TimeControl "180+1"]
[EndTime "15:18:09 PDT"]
[Termination "Durarbayli won by resignation"]

1. e4 {[%clk 0:03:00.9]} 1... e5 {[%clk 0:02:58.1]} 2. Nf3 {[%clk 0:03:00.1]}
2... Nc6 {[%clk 0:02:58.6]} 3. Bc4 {[%clk 0:02:57.3]} 3... Nf6 {[%clk 0:02:58]}
4. d3 {[%clk 0:02:55.5]} 4... h6 {[%clk 0:02:56.9]} 5. O-O {[%clk 0:02:52.3]}
5... d6 {[%clk 0:02:55.1]} 6. a4 {[%clk 0:02:51.3]} 6... g5 {[%clk 0:02:54.2]}
7. a5 {[%clk 0:02:50.4]} 7... Bg7 {[%clk 0:02:53.7]} 8. c3 {[%clk 0:02:44.8]}
8... O-O {[%clk 0:02:53.1]} 9. Nbd2 {[%clk 0:02:43.4]} 9... Ne7 {[%clk
0:02:51.6]} 10. Ne1 {[%clk 0:02:40.1]} 10... c6 {[%clk 0:02:48.9]} 11. Nc2
{[%clk 0:02:39.1]} 11... d5 {[%clk 0:02:48.5]} 12. Bb3 {[%clk 0:02:38.6]} 12...
Bg4 {[%clk 0:02:34.4]} 13. Qe1 {[%clk 0:02:35.6]} 13... Ng6 {[%clk 0:02:28.4]}
14. f3 {[%clk 0:02:17.3]} 14... Be6 {[%clk 0:02:25]} 15. g3 {[%clk 0:02:13.2]}
15... Re8 {[%clk 0:01:59.7]} 16. Ne3 {[%clk 0:01:52.8]} 16... Bf8 {[%clk
0:01:46.6]} 17. Kg2 {[%clk 0:01:50.7]} 17... Qd7 {[%clk 0:01:45.4]} 18. Rf2
{[%clk 0:01:48.5]} 18... Bc5 {[%clk 0:01:31.6]} 19. Bc2 {[%clk 0:01:44]} 19...
a6 {[%clk 0:01:22.3]} 20. Nb3 {[%clk 0:01:35.3]} 20... Ba7 {[%clk 0:01:22.3]}
21. d4 {[%clk 0:01:22.2]} 21... exd4 {[%clk 0:01:14.3]} 22. cxd4 {[%clk
0:01:19.9]} 22... dxe4 {[%clk 0:01:10.7]} 23. fxe4 {[%clk 0:01:18.9]} 23... Nxe4
{[%clk 0:01:10.2]} 24. Bxe4 {[%clk 0:01:13.3]} 24... Bh3+ {[%clk 0:01:08.5]} 25.
Kg1 {[%clk 0:01:11.2]} 25... Rxe4 {[%clk 0:01:06.6]} 26. Qc3 {[%clk 0:01:07.2]}
26... Rae8 {[%clk 0:00:58.9]} 27. Bd2 {[%clk 0:01:06.2]} 27... Bxd4 {[%clk
0:00:42.8]} 28. Nxd4 {[%clk 0:01:05.3]} 28... Qxd4 {[%clk 0:00:43.7]} 29. Qxd4
{[%clk 0:01:03.8]} 29... Rxd4 {[%clk 0:00:44.6]} 30. Bc3 {[%clk 0:01:03.2]}
30... Rde4 {[%clk 0:00:43.3]} 31. Nf5 {[%clk 0:01:00.1]} 31... Bxf5 {[%clk
0:00:36]} 32. Rxf5 {[%clk 0:00:59.3]} 32... Ne7 {[%clk 0:00:25.9]} 33. Rf6
{[%clk 0:00:57]} 33... Re6 {[%clk 0:00:25]} 34. Rxe6 {[%clk 0:00:55]} 34... fxe6
{[%clk 0:00:25.9]} 35. Ra3 {[%clk 0:00:53]} 35... Nd5 {[%clk 0:00:25.6]} 36. Be5
{[%clk 0:00:52]} 36... Re7 {[%clk 0:00:25.5]} 37. Kf2 {[%clk 0:00:49.2]} 37...
Rf7+ {[%clk 0:00:25.5]} 38. Ke2 {[%clk 0:00:48.7]} 38... Kh7 {[%clk 0:00:25.8]}
39. g4 {[%clk 0:00:47.2]} 39... Kg6 {[%clk 0:00:25.3]} 40. Rb3 {[%clk
0:00:42.3]} 40... h5 {[%clk 0:00:25.2]} 41. h3 {[%clk 0:00:41.8]} 41... h4
{[%clk 0:00:25.1]} 42. Bh2 {[%clk 0:00:36.9]} 42... c5 {[%clk 0:00:23.9]} 43.
Rd3 {[%clk 0:00:34.5]} 43... Nf4+ {[%clk 0:00:19.4]} 44. Bxf4 {[%clk 0:00:33.5]}
44... Rxf4 {[%clk 0:00:20.3]} 45. Rd6 {[%clk 0:00:32.8]} 45... Kf6 {[%clk
0:00:20.3]} 0-1

[Event "Late-Titled-Tuesday-Blitz-March-26-2024"]
[Site "Chess.com"]
[Date "2024.03.26"]
[Round "7"]
[White "Cluke86"]
[Black "IsaqueGoncalvesSanto"]
[Result "0-1"]
[WhiteElo "2318"]
[BlackElo "1906"]
[TimeControl "180+1"]
[EndTime "15:18:11 PDT"]
[Termination "IsaqueGoncalvesSanto won by checkmate"]

1. e4 {[%clk 0:03:00.9]} 1... e6 {[%clk 0:02:38]} 2. d4 {[%clk 0:02:55.5]} 2...
d5 {[%clk 0:02:38.1]} 3. Nc3 {[%clk 0:02:55.6]} 3... Bb4 {[%clk 0:02:37.3]} 4.
Ne2 {[%clk 0:02:54.7]} 4... Nf6 {[%clk 0:02:30.5]} 5. e5 {[%clk 0:02:52.8]} 5...
Nfd7 {[%clk 0:02:30.4]} 6. f4 {[%clk 0:02:52.2]} 6... O-O {[%clk 0:02:27.9]} 7.
a3 {[%clk 0:02:50.7]} 7... Be7 {[%clk 0:02:27.3]} 8. b4 {[%clk 0:02:50.4]} 8...
f6 {[%clk 0:02:27.2]} 9. Ng3 {[%clk 0:02:45.8]} 9... fxe5 {[%clk 0:02:26.3]} 10.
fxe5 {[%clk 0:02:46]} 10... Bh4 {[%clk 0:02:24.4]} 11. Bd3 {[%clk 0:02:45.6]}
11... g6 {[%clk 0:02:01.6]} 12. Ne2 {[%clk 0:02:40]} 12... a5 {[%clk 0:01:59.5]}
13. b5 {[%clk 0:02:34.6]} 13... c5 {[%clk 0:01:58.5]} 14. bxc6 {[%clk
0:02:33.7]} 14... bxc6 {[%clk 0:01:51.5]} 15. a4 {[%clk 0:02:32.2]} 15... c5
{[%clk 0:01:51.1]} 16. c3 {[%clk 0:02:32.4]} 16... Ba6 {[%clk 0:01:43.4]} 17.
Bh6 {[%clk 0:02:24.7]} 17... Rf7 {[%clk 0:01:22.9]} 18. Rf1 {[%clk 0:02:22.8]}
18... Qe8 {[%clk 0:00:53.9]} 19. Be3 {[%clk 0:02:07.2]} 19... cxd4 {[%clk
0:00:47.1]} 20. cxd4 {[%clk 0:02:04.5]} 20... Nc6 {[%clk 0:00:46.9]} 21. Rc1
{[%clk 0:01:44.5]} 21... Bxd3 {[%clk 0:00:39]} 22. Qxd3 {[%clk 0:01:43.8]} 22...
Nb4 {[%clk 0:00:39.2]} 23. Qb5 {[%clk 0:01:37]} 23... Rb8 {[%clk 0:00:33.9]} 24.
Qxa5 {[%clk 0:01:16.1]} 24... Nd3+ {[%clk 0:00:33.6]} 25. Kd2 {[%clk 0:01:16]}
25... Nxc1 {[%clk 0:00:31.5]} 26. Rxc1 {[%clk 0:01:16.5]} 26... Nf8 {[%clk
0:00:26]} 27. Nc3 {[%clk 0:01:06.7]} 27... Be7 {[%clk 0:00:25.2]} 28. Nb5 {[%clk
0:00:48.6]} 28... Nd7 {[%clk 0:00:19.7]} 29. Ne2 {[%clk 0:00:46]} 29... Qf8
{[%clk 0:00:19.4]} 30. Rc7 {[%clk 0:00:39.8]} 30... Bb4+ {[%clk 0:00:19.2]} 31.
Qxb4 {[%clk 0:00:25.3]} 31... Qxb4+ {[%clk 0:00:18.6]} 32. Nec3 {[%clk
0:00:25.9]} 32... Qb2+ {[%clk 0:00:17.5]} 33. Kd3 {[%clk 0:00:26.2]} 33... Nf8
{[%clk 0:00:16.2]} 34. Rc6 {[%clk 0:00:21.6]} 34... Rf1 {[%clk 0:00:15.4]} 35.
g3 {[%clk 0:00:07.7]} 35... Qxh2 {[%clk 0:00:14.4]} 36. Nc7 {[%clk 0:00:06.1]}
36... Rb2 {[%clk 0:00:12]} 37. Nxe6 {[%clk 0:00:06]} 37... Nxe6 {[%clk
0:00:11.7]} 38. Rxe6 {[%clk 0:00:05.7]} 38... Qc2# {[%clk 0:00:12.2]} 0-1